fUST/lending_fUST_20240804
["ID","MTS","AMOUNT","RATE_DAILY","PERIOD"]
[334085990,1722753052249,-151.0,0.00015486,2]
[334085991,1722753052259,-279.115589,0.00015486,2]
[334085992,1722753052268,-279.115589,0.00015486,2]
[334085993,1722753052277,-279.115589,0.00015486,2]
[334085994,1722753052288,-279.115589,0.00015486,2]
[334085995,1722753052297,-184.846925,0.00015486,2]
[334085996,1722753052307,-184.846925,0.00015486,2]
[334085997,1722753052316,-184.846925,0.00015486,2]
[334085998,1722753052326,-184.846925,0.00015486,2]
[334085999,1722753052336,-184.846925,0.00015486,2]
[334086000,1722753052347,-184.846925,0.00015486,2]
[334086001,1722753052356,-221.005252,0.00015486,2]
[334086002,1722753052365,-221.005252,0.00015486,2]
[334086003,1722753052374,-221.005252,0.00015486,2]
[334086004,1722753052384,-221.005252,0.00015486,2]
[334086005,1722753052393,-221.005252,0.00015486,2]
[334086006,1722753052402,-221.005252,0.00015486,2]
[334086007,1722753052414,-339.16216401,0.00015486,2]
[334086008,1722753052425,-500.0,0.00015486,2]
[334086009,1722753052434,-7324.86,0.00015486,2]
[334086010,1722753052443,-500.0,0.00015486,2]
[334086011,1722753052453,-1718.93,0.00015486,2]
[334086012,1722753052463,-151.0,0.00015487,2]
[334086013,1722753052471,-279.115589,0.00015487,2]
[334086014,1722753052482,-279.115589,0.00015487,2]
[334086015,1722753052491,-184.846925,0.00015487,2]
[334086016,1722753052502,-184.846919,0.00015487,2]
[334086017,1722753052511,-221.005252,0.00015487,2]
[334086018,1722753052520,-221.005256,0.00015487,2]
[334086019,1722753052529,-7324.86,0.00015493,2]
[334086020,1722753052540,-151.0,0.00015494,2]
[334086021,1722753052551,-279.115589,0.00015494,2]
[334086022,1722753052560,-279.115589,0.00015494,2]
[334086023,1722753052570,-500.0,0.00015494,2]
[334086024,1722753052580,-300.80638286,0.00015494,2]
[334086025,1722753052590,-7324.86,0.00015494,2]
[334086026,1722753052600,-500.0,0.00015494,2]
[334086027,1722753052688,-500.0,0.00015494,2]
[334086028,1722753052698,-1718.93,0.00015494,2]
[334086029,1722753052707,-1718.93,0.00015494,2]
[334086030,1722753052716,-151.0,0.00015495,2]
[334086031,1722753052726,-151.0,0.00015495,2]
[334086032,1722753052736,-279.115589,0.00015495,2]
[334086033,1722753052746,-279.115589,0.00015495,2]
[334086034,1722753052759,-279.115589,0.00015495,2]
[334086035,1722753052769,-279.115589,0.00015495,2]
[334086036,1722753052779,-7324.86,0.00015495,2]
[334086037,1722753052789,-7324.86,0.00015495,2]
[334086038,1722753052799,-500.0,0.00015495,2]
[334086039,1722753052809,-1718.93,0.00015495,2]
[334086040,1722753052818,-500.0,0.00015496,2]
[334086041,1722753052829,-500.0,0.00015496,2]
[334086042,1722753052839,-500.0,0.00015496,2]
[334086043,1722753052855,-500.0,0.00015496,2]
[334086044,1722753052864,-500.0,0.00015496,2]
[334086045,1722753052875,-317.35456873,0.00015496,2]
[334086046,1722753052884,-500.0,0.00015496,2]
[334086047,1722753052897,-500.0,0.00015496,2]
[334086048,1722753052907,-548.48728328,0.00015496,2]
[334086049,1722753052918,-500.0,0.00015496,2]
[334086050,1722753052929,-500.0,0.00015496,2]
[334086051,1722753052939,-500.0,0.00015496,2]
[334086052,1722753052950,-500.0,0.00015496,2]
[334086053,1722753052960,-500.0,0.00015496,2]
[334086054,1722753052972,-500.0,0.00015496,2]
[334086055,1722753052982,-500.0,0.00015496,2]
[334086056,1722753052992,-187.81736046,0.00015496,2]
[334086057,1722753053001,-500.0,0.00015496,2]
[334086058,1722753053012,-500.0,0.00015496,2]
[334086059,1722753053024,-500.0,0.00015496,2]
[334086060,1722753053034,-500.0,0.00015496,2]
[334086061,1722753053045,-500.0,0.00015496,2]
[334086062,1722753053056,-500.0,0.00015496,2]
[334086063,1722753053067,-513.19129359,0.00015496,2]
[334086064,1722753053078,-490.19614103,0.00015496,2]
[334086065,1722753053089,-500.0,0.00015496,2]
[334086066,1722753053098,-500.0,0.00015496,2]
[334086067,1722753053108,-500.0,0.00015496,2]
[334086068,1722753053120,-500.0,0.00015496,2]
[334086069,1722753053131,-500.0,0.00015496,2]
[334086070,1722753053141,-508.36140232,0.00015496,2]
[334086071,1722753053151,-500.0,0.00015496,2]
[334086072,1722753053159,-500.0,0.00015496,2]
[334086073,1722753053169,-500.0,0.00015496,2]
[334086074,1722753053179,-500.0,0.00015496,2]
[334086075,1722753053188,-509.02205877,0.00015496,2]
[334086076,1722753053198,-500.0,0.00015496,2]
[334086077,1722753053207,-573.09818668,0.00015496,2]
[334086078,1722753053218,-503.48504116,0.00015496,2]
[334086079,1722753053227,-239.25962241,0.00015496,2]
[334086080,1722753053237,-511.0181412,0.00015496,2]
[334086081,1722753053246,-500.0,0.00015496,2]
[334086082,1722753053257,-514.29260268,0.00015496,2]
[334086083,1722753053267,-151.0,0.00015496,2]
[334086084,1722753053278,-151.0,0.00015496,2]
[334086085,1722753053289,-279.115589,0.00015496,2]
[334086086,1722753053300,-279.115589,0.00015496,2]
[334086087,1722753053310,-279.115589,0.00015496,2]
[334086088,1722753053320,-279.115589,0.00015496,2]
[334086089,1722753053330,-279.115589,0.00015496,2]
[334086090,1722753053341,-279.11558,0.00015496,2]
[334086091,1722753053351,-7324.86,0.00015496,2]
[334086092,1722753053361,-500.0,0.00015496,2]
[334086093,1722753053370,-1718.93,0.00015496,2]
[334086094,1722753053380,-150.112233,0.000155,2]
[334086095,1722753053391,-150.112233,0.000155,2]
[334086096,1722753053401,-150.112233,0.000155,2]
[334086097,1722753053410,-150.112233,0.000155,2]
[334086098,1722753053420,-150.112233,0.000155,2]
[334086099,1722753053431,-150.112233,0.000155,2]
[334086100,1722753053440,-155.0,0.0001551,2]
[334086101,1722753053450,-1000.0,0.00015558,2]
[334086102,1722753053461,-1004.55160415,0.00015597,2]
[334086103,1722753053472,-150.112233,0.000156,2]
[334086104,1722753053482,-150.112233,0.000156,2]
[334086105,1722753053493,-150.112233,0.000156,2]
[334086106,1722753053505,-150.112233,0.000156,2]
[334086107,1722753053514,-150.112233,0.000156,2]
[334086108,1722753053524,-150.112233,0.000156,2]
[334086109,1722753053535,-500.0,0.000156,2]
[334086110,1722753053545,-1718.93,0.000156,2]
[334086111,1722753053555,-310.0,0.00015648,2]
[334086112,1722753053565,-310.0,0.00015648,2]
[334086113,1722753053574,-310.0,0.00015648,2]
[334086114,1722753053584,-310.0,0.00015648,2]
[334086115,1722753053594,-310.0,0.00015648,2]
[334086116,1722753053603,-310.0,0.00015648,2]
[334086117,1722753053613,-255.881377,0.00015648,2]
[334086118,1722753053622,-7324.86,0.00015686,2]
[334086119,1722753053631,-7324.86,0.00015689,2]
[334086120,1722753053642,-7324.86,0.00015696,2]
[334086121,1722753053653,-7324.86,0.00015696,2]
[334086122,1722753053663,-7324.86,0.00015696,2]
[334086123,1722753053674,-7324.86,0.00015696,2]
[334086124,1722753053685,-7324.96033901,0.00015696,2]
[334086125,1722753053694,-500.0,0.00015696,2]
[334086126,1722753053706,-1718.93,0.00015696,2]
[334086127,1722753053718,-1718.93,0.00015697,2]
[334086128,1722753053729,-151.0,0.00015698,2]
[334086129,1722753053739,-1718.93,0.00015698,2]
[334086130,1722753053749,-316.3986624,0.00015699,2]
[334086131,1722753053759,-150.112233,0.000157,2]
[334086132,1722753053770,-150.112233,0.000157,2]
[334086133,1722753053780,-150.112233,0.000157,2]
[334086134,1722753053790,-150.112233,0.000157,2]
[334086135,1722753053800,-153.0,0.000157,2]
[334086136,1722753053811,-601.0,0.000157,2]
[334086137,1722753053821,-1718.93,0.000157,2]
[334086138,1722753053831,-1000.0,0.00015705,2]
[334086139,1722753053843,-7774.59967491,0.00015707,2]
[334086140,1722753053855,-1718.93,0.00015707,2]
[334086141,1722753053866,-1718.93,0.00015707,2]
[334086142,1722753053876,-1718.93,0.00015707,2]
[334086143,1722753053888,-1643.04146398,0.00015708,7]
[334086144,1722753053899,-20757.81316463,0.00015708,2]
[334086145,1722753053909,-2278.01854997,0.00015708,3]
[334086146,1722753053921,-2124.35920477,0.00015708,2]
[334086147,1722753053931,-1610.56614984,0.00015708,2]
[334086148,1722753053941,-7001.07154863,0.00015708,2]
[334086149,1722753053953,-9641.65829969,0.00015708,2]
[334086150,1722753053966,-3087.44790236,0.00015708,2]
[334086151,1722753053976,-1382.82376341,0.00015708,2]
[334086152,1722753053986,-1162.72829906,0.00015708,2]
[334086153,1722753053996,-2162.43676373,0.00015708,2]
[334086154,1722753054008,-1763.34953629,0.00015708,2]
[334086155,1722753054019,-1991.50486571,0.00015708,2]
[334086156,1722753054030,-1438.19153297,0.00015708,2]
[334086157,1722753054039,-1794.47294319,0.00015708,2]
[334086158,1722753054049,-2138.98947464,0.00015708,2]
[334086159,1722753054059,-1550.48078068,0.00015708,2]
[334086160,1722753054071,-1500.0,0.00015708,2]
[334086161,1722753054080,-151.0,0.00015708,2]
[334086162,1722753054090,-151.0,0.00015708,2]
[334086163,1722753054101,-29718.08740092,0.00015708,2]
[334086164,1722753054112,-1718.93,0.00015708,2]
[334086165,1722753054122,-1718.93,0.00015708,2]
[334086166,1722753054133,-35010.17630372,0.00015709,2]
[334086167,1722753054145,-151.0,0.00015709,2]
[334086168,1722753054155,-1000.0,0.00015733,2]
[334086169,1722753054165,-500.0,0.00015738,2]
[334086170,1722753054175,-500.0,0.00015738,2]
[334086171,1722753054184,-3987.54,0.00015738,2]
[334086172,1722753054194,-500.0,0.00015738,2]
[334086173,1722753054204,-500.0,0.00015738,2]
[334086174,1722753054213,-500.0,0.00015738,2]
[334086175,1722753054288,-500.0,0.00015738,2]
[334086176,1722753054298,-504.12,0.00015744,2]
[334086177,1722753054310,-500.0,0.00015744,2]
[334086178,1722753054320,-2401.24,0.00015744,2]
[334086179,1722753054330,-500.0,0.00015744,2]
[334086180,1722753054342,-1718.93,0.00015748,2]
[334086181,1722753054353,-1718.93,0.00015748,2]
[334086182,1722753054364,-1718.93,0.00015748,2]
[334086183,1722753054376,-1718.93,0.00015748,2]
[334086184,1722753054386,-1718.95,0.00015748,2]
[334086185,1722753054400,-500.0,0.00015749,2]
[334086186,1722753054411,-500.0,0.00015749,2]
[334086187,1722753054422,-547.72,0.00015749,2]
[334086188,1722753054433,-643.45,0.00015749,2]
[334086189,1722753054444,-500.0,0.00015749,2]
[334086190,1722753054454,-500.0,0.00015749,2]
[334086191,1722753054464,-500.0,0.00015749,2]
[334086192,1722753054474,-500.0,0.00015749,2]
[334086193,1722753054484,-1162.13,0.00015749,2]
[334086194,1722753054495,-500.0,0.00015749,2]
[334086195,1722753054504,-500.0,0.00015749,2]
[334086196,1722753054514,-500.0,0.00015749,2]
[334086197,1722753054526,-1071.67,0.00015749,2]
[334086198,1722753054535,-5198.37,0.00015749,2]
[334086199,1722753054544,-2263.84,0.00015749,2]
[334086200,1722753054554,-1222.93,0.00015749,2]
[334086201,1722753054564,-749.33,0.00015749,2]
[334086202,1722753054574,-519.5,0.00015749,2]
[334086203,1722753054584,-500.0,0.00015749,2]
[334086204,1722753054593,-500.0,0.00015749,2]
[334086205,1722753054602,-500.0,0.00015749,2]
[334086206,1722753054611,-153.0,0.00015753,2]
[334086207,1722753054621,-270.8763614,0.00015753,2]
[334086208,1722753054630,-504.3404118,0.00015753,2]
[334086209,1722753054640,-294.2573361,0.00015753,2]
[334086210,1722753054651,-294.2573361,0.00015753,2]
[334086211,1722753054660,-294.0666644,0.00015753,2]
[334086212,1722753054669,-331.9258379,0.00015755,2]
[334086213,1722753054679,-500.0,0.00015757,2]
[334086214,1722753054688,-500.0,0.00015757,2]
[334086215,1722753054697,-500.0,0.00015757,2]
[334086216,1722753054707,-500.0,0.00015757,2]
[334086217,1722753054716,-500.0,0.00015757,2]
[334086218,1722753054725,-500.0,0.00015757,2]
[334086219,1722753054735,-500.0,0.00015757,2]
[334086220,1722753054745,-500.0,0.00015757,2]
[334086221,1722753054754,-500.0,0.00015757,2]
[334086222,1722753054764,-500.0,0.00015757,2]
[334086223,1722753054773,-500.0,0.00015757,2]
[334086224,1722753054784,-500.0,0.00015757,2]
[334086225,1722753054794,-500.0,0.00015757,2]
[334086226,1722753054804,-502.63257513,0.00015757,2]
[334086227,1722753054814,-500.0,0.00015757,2]
[334086228,1722753054824,-509.07095924,0.00015757,2]
[334086229,1722753054834,-500.0,0.00015757,2]
[334086230,1722753054846,-500.0,0.00015757,2]
[334086231,1722753054857,-500.0,0.00015757,2]
[334086232,1722753054867,-500.0,0.00015757,2]
[334086233,1722753054876,-520.27825207,0.00015757,2]
[334086234,1722753054887,-500.0,0.00015757,2]
[334086235,1722753054897,-500.0,0.00015757,2]
[334086236,1722753054907,-500.0,0.00015757,2]
[334086237,1722753054918,-341.03816866,0.00015757,2]
[334086238,1722753054928,-500.0,0.00015757,2]
[334086239,1722753054937,-500.0,0.00015757,2]
[334086240,1722753054947,-500.0,0.00015757,2]
[334086241,1722753054957,-500.0,0.00015757,2]
[334086242,1722753054966,-582.2,0.00015757,2]
[334086243,1722753054976,-500.0,0.00015757,2]
[334086244,1722753054986,-500.0,0.00015757,2]
[334086245,1722753054996,-500.0,0.00015757,2]
[334086246,1722753055005,-634.90608057,0.00015757,2]
[334086247,1722753055015,-500.0,0.00015757,2]
[334086248,1722753055024,-500.0,0.00015757,2]
[334086249,1722753055035,-500.0,0.00015757,2]
[334086250,1722753055046,-500.0,0.00015757,2]
[334086251,1722753055057,-536.30954369,0.00015757,2]
[334086252,1722753055068,-500.0,0.00015757,2]
[334086253,1722753055078,-500.0,0.00015757,2]
[334086254,1722753055088,-500.0,0.00015757,2]
[334086255,1722753055098,-500.0,0.00015757,2]
[334086256,1722753055107,-500.0,0.00015757,2]
[334086257,1722753055117,-500.0,0.00015757,2]
[334086258,1722753055127,-1672.91,0.00015757,2]
[334086259,1722753055136,-500.0,0.00015757,2]
[334086260,1722753055147,-500.0,0.00015757,2]
[334086261,1722753055156,-500.0,0.00015757,2]
[334086262,1722753055167,-500.0,0.00015757,2]
[334086263,1722753055176,-500.0,0.00015757,2]
[334086264,1722753055185,-500.0,0.00015757,2]
[334086265,1722753055194,-500.0,0.00015757,2]
[334086266,1722753055204,-500.0,0.00015757,2]
[334086267,1722753055213,-500.0,0.00015757,2]
[334086268,1722753055222,-550.74543108,0.00015757,2]
[334086269,1722753055231,-500.0,0.00015757,2]
[334086270,1722753055241,-669.39,0.00015757,2]
[334086271,1722753055250,-500.0,0.00015757,2]
[334086272,1722753055260,-500.0,0.00015757,2]
[334086273,1722753055269,-525.0756472,0.00015757,2]
[334086274,1722753055279,-500.0,0.00015757,2]
[334086275,1722753055288,-500.0,0.00015757,2]
[334086276,1722753055298,-1313.41,0.00015757,2]
[334086277,1722753055308,-500.0,0.00015757,2]
[334086278,1722753055318,-500.0,0.00015757,2]
[334086279,1722753055328,-163.3583793,0.00015757,2]
[334086280,1722753055339,-500.0,0.00015757,2]
[334086281,1722753055350,-500.0,0.00015757,2]
[334086282,1722753055361,-500.0,0.00015757,2]
[334086283,1722753055371,-509.57953487,0.00015757,2]
[334086284,1722753055380,-500.0,0.00015757,2]
[334086285,1722753055390,-500.0,0.00015757,2]
[334086286,1722753055399,-500.0,0.00015757,2]
[334086287,1722753055408,-500.0,0.00015757,2]
[334086288,1722753055418,-500.0,0.00015757,2]
[334086289,1722753055428,-500.0,0.00015757,2]
[334086290,1722753055438,-500.0,0.00015757,2]
[334086291,1722753055447,-511.52633496,0.00015757,2]
[334086292,1722753055456,-500.0,0.00015757,2]
[334086293,1722753055465,-503.49756742,0.00015757,2]
[334086294,1722753055474,-500.0,0.00015757,2]
[334086295,1722753055484,-500.0,0.00015757,2]
[334086296,1722753055495,-503.69781008,0.00015757,2]
[334086297,1722753055505,-500.0,0.00015757,2]
[334086298,1722753055515,-500.0,0.00015757,2]
[334086299,1722753055525,-500.0,0.00015757,2]
[334086300,1722753055535,-500.0,0.00015757,2]
[334086301,1722753055546,-500.0,0.00015757,2]
[334086302,1722753055556,-500.0,0.00015757,2]
[334086303,1722753055567,-500.0,0.00015757,2]
[334086304,1722753055578,-500.0,0.00015757,2]
[334086305,1722753055589,-500.0,0.00015757,2]
[334086306,1722753055599,-601.3,0.00015757,2]
[334086307,1722753055610,-500.0,0.00015757,2]
[334086308,1722753055621,-500.0,0.00015757,2]
[334086309,1722753055631,-500.0,0.00015757,2]
[334086310,1722753055640,-500.0,0.00015758,2]
[334086311,1722753055650,-612.19,0.00015758,2]
[334086312,1722753055720,-500.0,0.00015758,2]
[334086313,1722753055729,-3319.8,0.00015758,2]
[334086314,1722753055738,-500.0,0.00015758,2]
[334086315,1722753055747,-302.06282193,0.00015758,2]
[334086316,1722753055758,-500.0,0.00015758,2]
[334086317,1722753055770,-151.0,0.00015759,2]
[334086318,1722753055779,-500.0,0.00015759,2]
[334086319,1722753055789,-500.0,0.00015759,2]
[334086320,1722753055800,-500.0,0.00015759,2]
[334086321,1722753055811,-500.0,0.00015759,2]
[334086322,1722753055820,-500.0,0.00015759,2]
[334086323,1722753055830,-500.0,0.00015759,2]
[334086324,1722753055844,-246.51308563,0.00015759,2]
[334086325,1722753055854,-500.0,0.00015759,2]
[334086326,1722753055862,-500.0,0.00015759,2]
[334086327,1722753055871,-500.0,0.00015759,2]
[334086328,1722753055883,-500.0,0.00015759,2]
[334086329,1722753055893,-500.0,0.00015759,2]
[334086330,1722753055903,-500.0,0.00015759,2]
[334086331,1722753055914,-500.0,0.00015759,2]
[334086332,1722753055927,-500.0,0.00015759,2]
[334086333,1722753055938,-500.0,0.00015759,2]
[334086334,1722753055949,-500.0,0.00015759,2]
[334086335,1722753055959,-500.0,0.00015759,2]
[334086336,1722753055969,-500.0,0.00015759,2]
[334086337,1722753055979,-500.0,0.00015759,2]
[334086338,1722753055989,-500.0,0.00015759,2]
[334086339,1722753055999,-507.33162173,0.00015759,2]
[334086340,1722753056011,-500.0,0.00015759,2]
[334086341,1722753056022,-500.0,0.00015759,2]
[334086342,1722753056031,-500.0,0.00015759,2]
[334086343,1722753056042,-524.21291601,0.00015759,2]
[334086344,1722753056052,-513.30762217,0.00015759,2]
[334086345,1722753056064,-500.0,0.00015759,2]
[334086346,1722753056074,-500.0,0.00015759,2]
[334086347,1722753056083,-500.0,0.00015759,2]
[334086348,1722753056092,-504.37423345,0.00015759,2]
[334086349,1722753056101,-500.0,0.00015759,2]
[334086350,1722753056110,-500.0,0.00015759,2]
[334086351,1722753056119,-500.0,0.00015759,2]
[334086352,1722753056131,-500.0,0.00015759,2]
[334086353,1722753056143,-500.0,0.00015759,2]
[334086354,1722753056153,-500.0,0.00015759,2]
[334086355,1722753056162,-500.0,0.00015759,2]
[334086356,1722753056172,-502.85700382,0.00015759,2]
[334086357,1722753056181,-500.0,0.00015759,2]
[334086358,1722753056190,-500.0,0.00015759,2]
[334086359,1722753056199,-762.82,0.00015759,2]
[334086360,1722753056208,-534.8,0.00015759,2]
[334086361,1722753056217,-500.0,0.00015759,2]
[334086362,1722753056228,-500.0,0.00015759,2]
[334086363,1722753056237,-500.0,0.00015759,2]
[334086364,1722753056248,-500.0,0.00015759,2]
[334086365,1722753056258,-500.0,0.00015759,2]
[334086366,1722753056267,-500.0,0.00015759,2]
[334086367,1722753056276,-500.0,0.00015759,2]
[334086368,1722753056286,-505.92899947,0.00015759,2]
[334086369,1722753056296,-500.0,0.00015759,2]
[334086370,1722753056307,-500.0,0.00015759,2]
[334086371,1722753056317,-500.0,0.00015759,2]
[334086372,1722753056328,-500.0,0.00015759,2]
[334086373,1722753056338,-1021.17,0.00015759,2]
[334086374,1722753056348,-500.0,0.00015759,2]
[334086375,1722753056357,-500.0,0.00015759,2]
[334086376,1722753056367,-500.0,0.00015759,2]
[334086377,1722753056377,-500.0,0.00015759,2]
[334086378,1722753056388,-557.35320271,0.00015759,2]
[334086379,1722753056398,-500.0,0.00015759,2]
[334086380,1722753056408,-500.0,0.00015759,2]
[334086381,1722753056419,-500.0,0.00015759,2]
[334086382,1722753056429,-500.0,0.00015759,2]
[334086383,1722753056439,-500.0,0.00015759,2]
[334086384,1722753056450,-500.0,0.00015759,2]
[334086385,1722753056459,-525.79883313,0.00015759,2]
[334086386,1722753056468,-500.0,0.00015759,2]
[334086387,1722753056477,-500.0,0.00015759,2]
[334086388,1722753056486,-500.0,0.00015759,2]
[334086389,1722753056496,-500.0,0.00015759,2]
[334086390,1722753056505,-500.0,0.00015759,2]
[334086391,1722753056514,-500.0,0.00015759,2]
[334086392,1722753056523,-500.0,0.00015759,2]
[334086393,1722753056531,-500.0,0.00015759,2]
[334086394,1722753056540,-500.0,0.00015759,2]
[334086395,1722753056550,-500.0,0.00015759,2]
[334086396,1722753056560,-500.0,0.00015759,2]
[334086397,1722753056571,-498.02877869,0.00015759,2]
[334086398,1722753056581,-500.0,0.00015759,2]
[334086399,1722753056591,-500.0,0.00015759,2]
[334086400,1722753056603,-500.0,0.00015759,2]
[334086401,1722753056615,-500.0,0.00015759,2]
[334086402,1722753056626,-500.0,0.00015759,2]
[334086403,1722753056637,-500.0,0.00015759,2]
[334086404,1722753056648,-500.0,0.00015759,2]
[334086405,1722753056659,-500.0,0.00015759,2]
[334086406,1722753056668,-508.45274544,0.00015759,2]
[334086407,1722753056677,-500.0,0.00015759,2]
[334086408,1722753056687,-512.66087284,0.00015759,2]
[334086409,1722753056696,-328.0,0.00015759,2]
[334086410,1722753056706,-500.0,0.00015759,2]
[334086411,1722753056716,-500.0,0.00015759,2]
[334086412,1722753056725,-500.0,0.00015759,2]
[334086413,1722753056735,-500.0,0.00015759,2]
[334086414,1722753056744,-500.0,0.00015759,2]
[334086415,1722753056754,-500.0,0.00015759,2]
[334086416,1722753056763,-500.0,0.00015759,2]
[334086417,1722753056773,-500.0,0.00015759,2]
[334086418,1722753056783,-500.0,0.00015759,2]
[334086419,1722753056792,-500.0,0.00015759,2]
[334086420,1722753056802,-500.0,0.00015759,2]
[334086421,1722753056812,-500.0,0.00015759,2]
[334086422,1722753056823,-501.13903607,0.00015759,2]
[334086423,1722753056832,-500.0,0.00015759,2]
[334086424,1722753056843,-500.0,0.00015759,2]
[334086425,1722753056857,-500.0,0.00015759,2]
[334086426,1722753056867,-500.0,0.00015759,2]
[334086427,1722753056877,-500.0,0.00015759,2]
[334086428,1722753056890,-500.0,0.00015759,2]
[334086429,1722753056899,-151.0,0.0001576,2]
[334086430,1722753056908,-151.0,0.00015761,2]
[334086431,1722753056920,-500.0,0.0001577,2]
[334086432,1722753056930,-500.0,0.0001577,2]
[334086433,1722753056941,-500.0,0.0001577,2]
[334086434,1722753056952,-500.0,0.0001577,2]
[334086435,1722753056963,-500.0,0.0001577,2]
[334086436,1722753056973,-360.90468721,0.0001577,2]
[334086437,1722753056983,-243.4873328,0.0001577,2]
[334086438,1722753057052,-500.0,0.0001577,2]
[334086439,1722753057064,-456.88261359,0.0001577,2]
[334086440,1722753057074,-500.0,0.0001577,2]
[334086441,1722753057085,-500.0,0.0001577,2]
[334086442,1722753057094,-500.0,0.0001577,2]
[334086443,1722753057104,-500.0,0.0001577,2]
[334086444,1722753057113,-500.0,0.0001577,2]
[334086445,1722753057123,-500.0,0.0001577,2]
[334086446,1722753057133,-500.0,0.0001577,2]
[334086447,1722753057144,-500.0,0.0001577,2]
[334086448,1722753057153,-500.0,0.0001577,2]
[334086449,1722753057162,-500.0,0.0001577,2]
[334086450,1722753057172,-500.0,0.0001577,2]
[334086451,1722753057182,-500.0,0.0001577,2]
[334086452,1722753057193,-603.80216802,0.0001577,2]
[334086453,1722753057203,-521.07971276,0.0001577,2]
[334086454,1722753057214,-500.0,0.0001577,2]
[334086455,1722753057223,-500.0,0.0001577,2]
[334086456,1722753057233,-202.80058091,0.0001577,2]
[334086457,1722753057243,-205.64012201,0.0001577,2]
[334086458,1722753057254,-500.0,0.0001577,2]
[334086459,1722753057264,-570.23740061,0.0001577,2]
[334086460,1722753057274,-506.76392607,0.0001577,2]
[334086461,1722753057284,-560.05643856,0.0001577,2]
[334086462,1722753057294,-1000.019765,0.00015772,2]
[334086463,1722753057303,-150.112233,0.000158,2]
[334086464,1722753057313,-150.112233,0.000158,2]
[334086465,1722753057323,-150.112233,0.000158,2]
[334086466,1722753057333,-150.112233,0.000159,2]
[334086467,1722753057342,-150.112233,0.000159,2]
[334086468,1722753057351,-873.5301,0.000159,2]
[334086469,1722753057361,-100000.0,0.00015951,2]
[334086470,1722753057371,-1411.0,0.00015954,2]
[334086471,1722753057381,-588.0639807,0.00015976,2]
[334086472,1722753057395,-294.2573361,0.00015976,2]
[334086473,1722753057406,-294.257336,0.00015976,2]
[334086474,1722753057416,-150.112233,0.00016,2]
[334086475,1722753057427,-150.112233,0.00016,2]
[334086476,1722753057437,-3000.0,0.00016,2]
[334086477,1722753057447,-3000.0,0.0001601,2]
[334086478,1722753057459,-500.0,0.00016012,2]
[334086479,1722753057469,-500.0,0.00016012,2]
[334086480,1722753057479,-3987.54,0.00016012,2]
[334086481,1722753057488,-500.0,0.00016012,2]
[334086482,1722753057498,-500.0,0.00016012,2]
[334086483,1722753057508,-500.0,0.00016012,2]
[334086484,1722753057517,-500.0,0.00016012,2]
[334086485,1722753057529,-504.12,0.00016018,2]
[334086486,1722753057540,-500.0,0.00016018,2]
[334086487,1722753057551,-2401.24,0.00016018,2]
[334086488,1722753057562,-500.0,0.00016018,2]
[334086489,1722753057573,-3000.0,0.0001602,2]